fUSD/lending_fUSD_20260412
["ID","MTS","AMOUNT","RATE_DAILY","PERIOD"]
[420294615,1775923250736,152.0,0.000192,120]
[420294616,1775923279692,2579.72452011,0.00029208,120]
[420294623,1775923305969,200.0,0.00030137,120]
[420294624,1775923438453,1557.0,0.0003013,120]
[420294625,1775923525108,300.64671838,0.00030137,120]
[420294626,1775923561803,282.28290039,0.00030102,120]
[420294627,1775923579928,2192.7658421,0.00029224,120]
[420294628,1775923631597,329.0,0.0003013,120]
[420294629,1775923714034,200.0,0.00030136,120]
[420294632,1775923831594,-247.65,8.814e-05,2]
[420294633,1775923831605,-250.0,8.814e-05,2]
[420294634,1775923831615,-268.53991981,8.814e-05,2]
[420294635,1775923831639,-7.46008019,8.814e-05,2]
[420294636,1775923831649,-294.99693008,8.901e-05,2]
[420294637,1775923831658,-247.65,9.118e-05,2]
[420294638,1775923831682,-247.65,9.421e-05,2]
[420294639,1775923831692,-721.97,9.499e-05,2]
[420294640,1775923831704,-166.66,9.513e-05,2]
[420294641,1775923831726,-2000.0,9.524e-05,2]
[420294642,1775923831741,-250.0,9.695e-05,2]
[420294643,1775923831755,-300.0,9.699e-05,2]
[420294644,1775923831779,-1200.0,9.699e-05,2]
[420294645,1775923831792,-150.0,9.7e-05,2]
[420294646,1775923831804,-7956.24,9.7e-05,2]
[420294647,1775923831818,-1189.89,9.7e-05,2]
[420294648,1775923831828,-4999.99,9.7e-05,2]
[420294649,1775923831845,-4731.01,9.7e-05,2]
[420294650,1775923831861,-5191.38,9.7e-05,2]
[420294651,1775923831872,-9999.99,9.7e-05,2]
[420294652,1775923831899,-247.65,9.725e-05,2]
[420294653,1775923831912,-600.0,9.9e-05,3]
[420294654,1775923831934,-1500.0,9.93e-05,2]
[420294655,1775923831947,-140000.0,9.996e-05,2]
[420294656,1775923831966,-315.49167063,0.0001,2]
[420294657,1775923832003,-1300.0,0.0001,3]
[420294658,1775923832021,-247.65,0.00010029,2]
[420294659,1775923832049,-2668.9931,0.00010096,2]
[420294660,1775923832063,-12043.5131,0.00010096,2]
[420294661,1775923832081,-2500.0,0.00010096,2]
[420294662,1775923832098,-500.0,0.00010173,2]
[420294663,1775923832129,-500.0,0.00010173,2]
[420294664,1775923832138,-389.17525049,0.00010173,2]
[420294665,1775923832150,-500.0,0.00010173,2]
[420294666,1775923832163,-500.47252773,0.00010173,2]
[420294667,1775923832172,-500.0,0.00010173,2]
[420294668,1775923832182,-500.0,0.00010173,2]
[420294669,1775923832195,-745.53091044,0.00010189,2]
[420294670,1775923832210,-500.0,0.00010193,2]
[420294672,1775923832221,-500.0,0.00010193,2]
[420294673,1775923832230,-500.0,0.00010193,2]
[420294674,1775923832242,-500.0,0.00010193,2]
[420294675,1775923832254,-500.0,0.00010193,2]
[420294677,1775923832264,-500.0,0.00010193,2]
[420294679,1775923832287,-500.0,0.00010193,2]
[420294680,1775923832297,-500.0,0.00010193,2]
[420294682,1775923832318,-500.0,0.00010193,2]
[420294684,1775923832329,-500.0,0.00010193,2]
[420294686,1775923832348,-500.0,0.00010193,2]
[420294687,1775923832358,-500.0,0.00010193,2]
[420294688,1775923832370,-500.0,0.00010193,2]
[420294690,1775923832391,-500.0,0.00010193,2]
[420294692,1775923832401,-500.0,0.00010193,2]
[420294694,1775923832417,-500.0,0.00010193,2]
[420294696,1775923832430,-500.0,0.00010193,2]
[420294697,1775923832440,-500.0,0.00010193,2]
[420294698,1775923832450,-500.0,0.00010193,2]
[420294699,1775923832474,-500.0,0.00010193,2]
[420294700,1775923832484,-500.0,0.00010193,2]
[420294701,1775923832502,-500.0,0.00010193,2]
[420294702,1775923832514,-500.0,0.00010193,2]
[420294703,1775923832523,-500.0,0.00010193,2]
[420294704,1775923832534,-500.0,0.00010193,2]
[420294705,1775923832549,-500.0,0.00010193,2]
[420294706,1775923832561,-500.0,0.00010193,2]
[420294707,1775923832570,-500.0,0.00010193,2]
[420294708,1775923832589,-500.0,0.00010193,2]
[420294709,1775923832600,-1039.42305317,0.00010193,2]
[420294710,1775923832611,-1039.42305317,0.00010193,2]
[420294711,1775923832629,-1039.42305317,0.00010193,2]
[420294712,1775923832650,-1039.42305317,0.00010193,2]
[420294713,1775923832659,-1039.42305317,0.00010193,2]
[420294714,1775923832675,-1039.42305317,0.00010193,2]
[420294715,1775923832690,-1039.42305317,0.00010193,2]
[420294716,1775923832703,-1039.42305317,0.00010193,2]
[420294717,1775923832719,-1039.42305317,0.00010193,2]
[420294718,1775923832729,-1039.42305317,0.00010193,2]
[420294719,1775923832741,-1039.42305317,0.00010193,2]
[420294720,1775923832755,-1039.42305317,0.00010193,2]
[420294721,1775923832772,-1039.42305317,0.00010193,2]
[420294722,1775923832782,-1039.42305317,0.00010193,2]
[420294723,1775923832791,-1039.42305317,0.00010193,2]
[420294724,1775923832801,-1039.42305317,0.00010193,2]
[420294725,1775923832811,-1039.42305317,0.00010193,2]
[420294726,1775923832825,-1039.42305317,0.00010193,2]
[420294727,1775923832835,-1039.42305317,0.00010193,2]
[420294728,1775923832848,-1039.42305317,0.00010193,2]
[420294729,1775923832862,-1039.42305317,0.00010193,2]
[420294730,1775923832872,-1039.42305317,0.00010193,2]
[420294731,1775923832882,-1039.42305317,0.00010193,2]
[420294732,1775923832898,-1039.42305317,0.00010193,2]
[420294733,1775923832909,-1039.42305317,0.00010193,2]
[420294734,1775923832919,-1039.42305317,0.00010193,2]
[420294735,1775923832928,-1039.42305317,0.00010193,2]
[420294736,1775923832944,-1039.42305317,0.00010193,2]
[420294737,1775923832957,-1039.42305317,0.00010193,2]
[420294738,1775923832966,-1039.42305317,0.00010193,2]
[420294739,1775923833314,-1039.42305317,0.00010193,2]
[420294740,1775923833362,-1039.42305317,0.00010193,2]
[420294741,1775923833378,-1039.42305317,0.00010193,2]
[420294742,1775923833405,-1039.42305317,0.00010193,2]
[420294743,1775923833418,-1034.85712174,0.00010193,2]
[420294744,1775923833440,-1034.85712174,0.00010193,2]
[420294745,1775923833449,-1034.85712174,0.00010193,2]
[420294746,1775923833459,-1034.85712174,0.00010193,2]
[420294747,1775923833472,-1034.85712174,0.00010193,2]
[420294748,1775923833487,-1034.85712174,0.00010193,2]
[420294749,1775923833496,-1034.85712174,0.00010193,2]
[420294750,1775923833512,-1034.85712174,0.00010193,2]
[420294751,1775923833529,-1034.85712174,0.00010193,2]
[420294752,1775923833552,-1034.85712174,0.00010193,2]
[420294753,1775923833567,-1034.85712174,0.00010193,2]
[420294754,1775923833578,-1034.85712174,0.00010193,2]
[420294755,1775923833598,-1034.85712174,0.00010193,2]
[420294756,1775923833609,-1034.85712174,0.00010193,2]
[420294757,1775923833621,-1034.85712174,0.00010193,2]
[420294758,1775923833640,-1034.85712174,0.00010193,2]
[420294759,1775923833650,-1034.85712174,0.00010193,2]
[420294760,1775923833662,-1034.85712174,0.00010193,2]
[420294761,1775923833671,-1034.85712174,0.00010193,2]
[420294762,1775923833685,-1034.85712174,0.00010193,2]
[420294763,1775923833695,-1253.95275233,0.00010193,2]
[420294764,1775923833706,-1253.95275233,0.00010193,2]
[420294765,1775923833718,-1253.95275233,0.00010193,2]
[420294766,1775923833730,-1253.95275233,0.00010193,2]
[420294767,1775923833742,-1253.95275233,0.00010193,2]
[420294768,1775923833753,-1253.95275233,0.00010193,2]
[420294769,1775923833766,-2078.084,0.00010194,2]
[420294770,1775923833778,-160.067,0.00010194,2]
[420294771,1775923833794,-500.0,0.00010195,2]
[420294772,1775923833807,-500.0,0.00010195,2]
[420294773,1775923833818,-500.0,0.00010195,2]
[420294774,1775923833838,-246.3037098,0.00010195,2]
[420294775,1775923833854,-380.43544892,0.00010195,2]
[420294776,1775923833872,-500.0,0.00010195,2]
[420294777,1775923833888,-472.14122172,0.00010195,2]
[420294778,1775923833909,-500.0,0.00010195,2]
[420294779,1775923833927,-500.0,0.00010195,2]
[420294780,1775923833940,-500.0,0.00010195,2]
[420294781,1775923833955,-500.0,0.00010195,2]
[420294782,1775923833973,-538.44236183,0.00010195,2]
[420294783,1775923833987,-600.0,0.00010195,2]
[420294784,1775923834004,-150.0,0.00010195,2]
[420294785,1775923834018,-150.0,0.00010195,2]
[420294786,1775923834034,-32776.59638121,0.00010196,2]
[420294787,1775923835132,-1127.54480993,0.00010196,2]
[420294788,1775923835160,-954.1516,0.00010196,2]
[420294789,1775923835178,-6499.63482031,0.00010196,2]
[420294790,1775923835204,-6340.93322341,0.00010196,2]
[420294791,1775923835221,-2802.62646491,0.00010196,2]
[420294792,1775923835256,-346.84803172,0.00010196,2]
[420294793,1775923835326,-12124.90390716,0.00010196,2]
[420294794,1775923835338,-748.00966555,0.00010196,2]
[420294795,1775923835372,-541980.3943958,0.00010196,2]
[420294796,1775923835382,-352.07424273,0.00010201,2]
[420294797,1775923835397,-447.91846908,0.00010201,2]
[420294798,1775923835410,-1259.54698506,0.00010201,2]
[420294799,1775923835423,-155.0,0.00010272,2]
[420294800,1775923835443,-665.43817284,0.00010286,2]
[420294801,1775923835457,-151.0,0.00010296,2]
[420294802,1775923835482,-151.0,0.00010296,2]
[420294803,1775923835491,-151.0,0.00010296,2]
[420294804,1775923835505,-151.0,0.00010296,2]
[420294805,1775923835528,-151.0,0.00010296,2]
[420294806,1775923835541,-151.0,0.00010296,2]
[420294807,1775923835553,-151.0,0.00010296,2]
[420294808,1775923835578,-500.0,0.00010301,2]
[420294809,1775923835587,-7271.46659721,0.00010324,2]
[420294810,1775923835598,-1328.27659266,0.00010333,2]
[420294811,1775923835617,-601.3376128,0.00010333,2]
[420294812,1775923835631,-200.0,0.00010333,2]
[420294813,1775923835642,-578.20924308,0.00010333,2]
[420294814,1775923835662,-500.0,0.00010333,2]
[420294815,1775923835675,-500.0,0.00010333,2]
[420294816,1775923835697,-743.50770149,0.00010333,2]
[420294817,1775923835712,-500.0,0.00010333,2]
[420294818,1775923835721,-500.0,0.00010333,2]
[420294819,1775923835730,-500.0,0.00010333,2]
[420294820,1775923835753,-500.0,0.00010333,2]
[420294821,1775923835763,-500.0,0.00010333,2]
[420294822,1775923835773,-500.0,0.00010333,2]
[420294823,1775923835787,-500.0,0.00010333,2]
[420294824,1775923835801,-500.0,0.00010333,2]
[420294825,1775923835814,-500.0,0.00010333,2]
[420294826,1775923835827,-500.0,0.00010333,2]
[420294827,1775923835837,-174.61919141,0.00010333,2]
[420294828,1775923835847,-500.0,0.00010333,2]
[420294829,1775923835868,-247.65,0.00010333,2]
[420294830,1775923835879,-12447.501,0.00010375,2]
[420294831,1775923835892,-1000.0,0.00010375,2]
[420294832,1775923835907,-247.65,0.00010637,2]
[420294833,1775923835920,-420.0,0.00010669,2]
[420294834,1775923835932,-1680.0,0.00010669,2]
[420294835,1775923835965,-2000.0,0.00010714,2]
[420294836,1775923835980,-500.0,0.00010721,2]
[420294837,1775923835990,-500.3668536,0.00010721,2]
[420294838,1775923836013,-1000.0,0.00010721,2]
[420294839,1775923836030,-763.0,0.00010755,5]
[420294840,1775923836044,-610.0,0.00010755,5]
[420294841,1775923836061,-1377.42282659,0.00010881,2]
[420294842,1775923836077,-200.0,0.00010881,2]
[420294843,1775923836086,-771.01748645,0.00010881,2]
[420294844,1775923836101,-181.08010149,0.00010881,2]
[420294845,1775923836114,-2000.0,0.000109,3]
[420294846,1775923836146,-247.65,0.00010941,2]
[420294847,1775923836155,-178.34780479,0.00010959,2]
[420294848,1775923836165,-171.9968,0.00011,2]
[420294849,1775923836189,-1160.09,0.00011037,2]
[420294850,1775923836198,-433.09,0.0001107,2]
[420294851,1775923836216,-166.66,0.00011084,2]
[420294852,1775923836233,-454.47775275,0.00011095,2]
[420294853,1775923836247,-32509.6406895,0.00011099,2]
[420294854,1775923836262,-25783.54193321,0.00011099,2]
[420294855,1775923836281,-151.0,0.00011099,2]
[420294856,1775923836297,-151.0,0.00011099,2]
[420294857,1775923836309,-151.0,0.00011099,2]
[420294858,1775923836330,-151.0,0.00011099,2]
[420294859,1775923836342,-151.0,0.00011099,2]
[420294860,1775923836352,-151.0,0.00011099,2]
[420294861,1775923836377,-151.0,0.00011099,2]
[420294862,1775923836407,-151.0,0.00011099,2]
[420294863,1775923836783,-12425.67310521,0.00011183,2]
[420294864,1775923836799,-247.65,0.00011245,2]
[420294865,1775923836823,-1500.0,0.00011268,2]
[420294866,1775923836835,-2000.0,0.0001133,2]
[420294867,1775923836851,-2000.0,0.0001133,2]
[420294868,1775923836869,-304.13455165,0.00011333,2]
[420294869,1775923836881,-2000.0,0.0001134,2]
[420294870,1775923836905,-2000.0,0.0001137,2]
[420294871,1775923836917,-300.0,0.00011374,2]
[420294872,1775923836930,-144627.8370125,0.00011375,2]
[420294873,1775923836952,-20872.2396025,0.00011375,2]
[420294874,1775923836983,-1670.8004172,0.00011375,2]
[420294875,1775923836994,-151.0,0.00011375,2]
[420294876,1775923837003,-151.0,0.00011375,2]
[420294877,1775923837026,-151.0,0.00011375,2]
[420294878,1775923837047,-151.0,0.00011375,2]
[420294879,1775923837060,-266.213905,0.00011375,2]
[420294880,1775923837074,-151.0,0.00011375,2]
[420294881,1775923837086,-151.0,0.00011375,2]
[420294882,1775923837096,-1428.38747117,0.00011429,2]
[420294883,1775923837117,-200.0,0.00011429,2]
[420294884,1775923837127,-322.36675585,0.00011429,2]
[420294885,1775923837138,-187.78006525,0.00011429,2]
[420294886,1775923837157,-151.0,0.0001144,2]
[420294887,1775923837169,-2000.0,0.0001144,2]
[420294888,1775923837184,-2000.0,0.0001144,2]
[420294889,1775923837194,-183.6,0.00011456,2]
[420294890,1775923837205,-1899.92,0.00011507,2]
[420294891,1775923837214,-247.65,0.00011549,2]
[420294892,1775923837231,-300.0,0.00011702,2]
[420294893,1775923837241,-300.0,0.00011702,2]
[420294894,1775923837253,-300.0,0.00011702,2]
[420294895,1775923837264,-300.0,0.00011706,2]
[420294896,1775923837288,-151.0,0.00011707,2]
[420294898,1775923837297,-151.0,0.00011707,2]
[420294899,1775923837307,-151.0,0.00011707,2]
[420294900,1775923837327,-151.0,0.00011707,2]
[420294901,1775923837337,-151.0,0.00011707,2]
[420294902,1775923837347,-239.121356,0.00011707,2]
[420294903,1775923837368,-31602.33478534,0.00011707,2]
[420294904,1775923837382,-907.30590409,0.00011707,2]
[420294905,1775923837393,-639.15886238,0.00011707,2]
[420294906,1775923837418,-927.69623708,0.00011707,2]
[420294907,1775923837430,-1606.72727158,0.00011707,2]
[420294908,1775923837443,-1998.50742485,0.00011707,2]
[420294909,1775923837457,-3640.59180879,0.00011707,2]
[420294910,1775923837488,-456.50541151,0.00011707,2]
[420294962,1775923839444,-500.0,0.00011707,2]
[420294963,1775923839478,-1187.35566211,0.00011707,2]
[420294971,1775923840167,-193.11361145,0.00011707,2]
[420294972,1775923840189,-1562.03017403,0.00011707,2]
[420294973,1775923840202,-590.0917593,0.00011707,2]
[420294974,1775923840318,-679.9945,0.00011707,2]
[420294982,1775923842935,-11994.88282158,0.00011707,2]
[420294983,1775923842946,-587.0,0.00011736,2]
[420294984,1775923842956,-2351.0,0.00011736,2]
[420294985,1775923842966,-300.0,0.00011762,2]
[420294986,1775923842979,-300.0,0.00011762,2]
[420294987,1775923842994,-300.0,0.00011762,2]
[420294988,1775923843003,-2000.0,0.00011816,2]
[420294989,1775923843013,-1600.0,0.00011893,2]
[420294990,1775923843024,-1000.0,0.000119,2]
[420294991,1775923843047,-313.0,0.000119,2]
[420294992,1775923843059,-199.74897592,0.000119,2]
[420295004,1775923846856,-152.0,0.00010199,7]
[420295005,1775923846867,-0.25102408,0.000119,2]
[420295006,1775923846887,-307.0,0.000119,2]
[420295007,1775923846919,-2000.0,0.00011905,2]
[420295008,1775923846929,-165.58,0.00011912,2]
[420295009,1775923846966,-1481.23780761,0.00011977,2]
[420295010,1775923846990,-342.69245863,0.00011977,2]
[420295011,1775923847091,-194.72792766,0.00011977,2]
[420295012,1775923847126,-477.98987582,0.00012,2]
[420295013,1775923847139,-183.6,0.00012002,2]
[420295014,1775923847161,-300.0,0.00012007,2]
[420295015,1775923847170,-300.0,0.00012007,2]
[420295016,1775923847180,-300.0,0.00012007,2]
[420295017,1775923847201,-151.0,0.00012062,2]
[420295018,1775923847211,-212.888519,0.00012297,2]
[420295019,1775923847220,-334.841547,0.00012297,2]
[420295020,1775923847233,-160.0,0.00012297,2]
[420295021,1775923847249,-1273.466269,0.00012297,2]
[420295022,1775923847258,-2386.932539,0.00012297,2]
[420295023,1775923847270,-160.0,0.00012297,2]
[420295024,1775923847285,-565.188069,0.00012297,2]
[420295025,1775923847295,-970.376139,0.00012297,2]
[420295026,1775923847305,-2500.0,0.00012364,2]
[420295027,1775923847327,-197.2193,0.000124,2]
[420295028,1775923847337,-155.385,0.00012402,2]
[420295029,1775923847347,-1536.04360649,0.00012525,2]
[420295030,1775923847365,-201.93286099,0.00012525,2]
[420295031,1775923847375,-150.0,0.00012526,2]
[420295032,1775923847394,-150.0,0.00012526,2]
[420295033,1775923847404,-150.0,0.00012526,2]
[420295034,1775923847413,-150.0,0.00012526,2]
[420295035,1775923847422,-150.0,0.00012526,2]
[420295036,1775923847436,-150.0,0.00012526,2]
[420295037,1775923847446,-150.0,0.00012526,2]
[420295038,1775923847458,-150.0,0.00012526,2]
[420295039,1775923847475,-150.0,0.00012526,2]
[420295040,1775923847485,-150.0,0.00012526,2]
[420295041,1775923847502,-150.0,0.00012526,2]
[420295042,1775923847518,-150.0,0.00012526,2]
[420295043,1775923847528,-200.98192153,0.00012526,2]
[420295044,1775923847544,-150.0,0.00012526,2]
[420295045,1775923847562,-150.0,0.00012526,2]
[420295046,1775923847587,-183.6,0.00012548,2]
[420295047,1775923847597,-274.426605,0.00012548,2]
[420295048,1775923847606,-160.0,0.00012548,2]
[420295049,1775923847621,-6514.276953,0.00012548,2]
[420295050,1775923847635,-12868.553906,0.00012548,2]
[420295051,1775923847645,-151.0,0.00012595,2]
[420295052,1775923847663,-279.81142925,0.00012661,2]
[420295053,1775923847683,-150.0,0.00012681,2]
[420295054,1775923847692,-150.0,0.00012758,2]
[420295055,1775923847701,-150.0,0.00012758,2]
[420295056,1775923847722,-150.0,0.00012758,2]
[420295057,1775923847732,-150.0,0.00012804,2]
[420295058,1775923847741,-150.0,0.00012804,2]
[420295059,1775923847757,-150.0,0.00012835,2]
[420295060,1775923847767,-300.0,0.00012861,2]
[420295061,1775923847780,-300.0,0.00012861,2]
[420295062,1775923847791,-274.17,0.00012877,2]
[420295063,1775923847809,-823.0,0.00012909,2]
[420295064,1775923847820,-3292.0,0.00012909,2]
[420295065,1775923847831,-2604.81737,0.00012912,2]
[420295066,1775923847849,-770.711003,0.00012912,2]
[420295067,1775923847864,-996.71617934,0.00012912,2]
[420295068,1775923847874,-150.0,0.0001299,2]
[420295069,1775923847898,-150.0,0.0001299,2]
[420295070,1775923847924,-150.0,0.0001299,2]
[420295071,1775923847935,-150.0,0.0001299,2]
[420295072,1775923847954,-250.0,0.00013,2]
[420295073,1775923847973,-1259.54698505,0.00013068,2]
[420295074,1775923847994,-599.60298507,0.00013072,2]
[420295075,1775923848025,-209.40437684,0.00013073,2]
[420295076,1775923848035,-1600.0,0.00013082,2]
[420295077,1775923848067,-150.0,0.00013083,2]
[420295078,1775923848076,-150.0,0.00013083,2]
[420295079,1775923848088,-151.0,0.00013091,5]
[420295080,1775923848101,-183.6,0.00013093,2]
[420295081,1775923848113,-2000.0,0.00013095,2]
[420295082,1775923848122,-270.74746472,0.00013116,2]
[420295083,1775923848134,-300.0,0.00013123,2]
[420295084,1775923848148,-3402.14,0.00013141,2]
[420295085,1775923848160,-1576.63,0.00013141,2]
[420295086,1775923848170,-3606.79,0.00013141,2]
[420295087,1775923848179,-3576.48,0.00013141,2]
[420295088,1775923848196,-150.0,0.00013145,2]
[420295089,1775923848206,-2146.0,0.00013151,2]
[420295090,1775923848218,-245.61,0.00013151,2]
[420295091,1775923848232,-8883.104935,0.00013176,2]
[420295092,1775923848252,-151.0,0.00013176,2]
[420295093,1775923848266,-151.0,0.00013176,2]
[420295094,1775923848277,-151.0,0.00013176,2]
[420295095,1775923848298,-151.0,0.00013176,2]
[420295096,1775923848311,-151.0,0.00013176,2]
[420295097,1775923848334,-1160.09,0.000132,2]
[420295098,1775923848361,-150.0,0.00013222,2]
[420295099,1775923848370,-150.0,0.00013222,2]
[420295100,1775923848396,-150.0,0.00013222,2]
[420295101,1775923848405,-150.0,0.00013222,2]
[420295102,1775923848418,-150.0,0.00013222,2]
[420295103,1775923848435,-150.0,0.00013299,2]
[420295104,1775923848446,-300.0,0.00013307,2]
[420295105,1775923848458,-300.0,0.00013307,2]
[420295106,1775923848476,-300.0,0.00013309,2]
[420295107,1775923848486,-300.0,0.00013309,2]
[420295108,1775923848496,-300.0,0.00013309,2]
[420295109,1775923848514,-300.0,0.00013309,2]
[420295110,1775923848530,-300.0,0.00013313,2]
[420295111,1775923848540,-32509.64068943,0.00013314,2]
[420295112,1775923848559,-25783.54193321,0.00013314,2]
[420295113,1775923848571,-150.0,0.00013361,2]
[420295114,1775923848583,-150.0,0.00013361,2]
[420295115,1775923848603,-1962.85,0.00013364,2]
[420295116,1775923848612,-300.0,0.00013391,2]
[420295117,1775923848622,-300.0,0.00013391,2]
[420295118,1775923848636,-300.0,0.00013391,2]
[420295119,1775923848654,-177.65,0.0001341,2]
[420295120,1775923848665,-3240.0,0.00013425,2]
[420295121,1775923848680,-150.0,0.00013454,2]
[420295122,1775923848699,-150.0,0.00013454,2]
[420295123,1775923848709,-150.0,0.00013454,2]
[420295124,1775923848725,-150.0,0.00013454,2]
[420295125,1775923848745,-506.17577916,0.00013518,2]
[420295126,1775923848754,-186.18,0.00013518,2]
[420295127,1775923848779,-1262.0408,0.00013597,2]
[420295128,1775923848788,-150.0,0.00013609,2]
[420295129,1775923848799,-217.15233878,0.00013621,2]
[420295130,1775923848839,-183.6,0.00013639,2]
[420295131,1775923848849,-150.0,0.00013639,2]
[420295132,1775923848863,-150.0,0.00013639,2]
[420295133,1775923848887,-155.0,0.00013642,2]
[420295134,1775923848898,-151.0,0.00013668,2]
[420295135,1775923848911,-151.0,0.00013668,2]
[420295136,1775923848933,-151.0,0.00013668,2]
[420295137,1775923848942,-151.0,0.00013668,2]
[420295138,1775923848951,-151.0,0.00013668,2]
[420295139,1775923848976,-151.0,0.00013668,2]
[420295140,1775923848986,-151.0,0.00013668,2]
[420295141,1775923848995,-151.0,0.00013668,2]
[420295142,1775923849010,-151.0,0.00013668,2]
[420295143,1775923849021,-151.0,0.00013668,2]
[420295144,1775923849033,-151.0,0.00013668,2]
[420295145,1775923849042,-151.0,0.00013668,2]
[420295146,1775923849058,-151.0,0.00013668,2]
[420295147,1775923849071,-151.0,0.00013668,2]
[420295148,1775923849080,-151.0,0.00013668,2]
[420295149,1775923849089,-151.0,0.00013668,2]
[420295150,1775923849108,-151.0,0.00013668,2]
[420295151,1775923849118,-151.0,0.00013668,2]
[420295152,1775923849128,-151.0,0.00013668,2]
[420295153,1775923849140,-151.0,0.00013668,2]
[420295154,1775923849158,-151.0,0.00013668,2]
[420295155,1775923849180,-151.0,0.00013668,2]
[420295156,1775923849190,-151.0,0.00013668,2]
[420295157,1775923849203,-151.0,0.00013668,2]
[420295158,1775923849224,-151.0,0.00013668,2]
[420295159,1775923849252,-151.0,0.00013668,2]
[420295160,1775923849269,-151.0,0.00013668,2]
[420295161,1775923849294,-151.0,0.00013668,2]
[420295162,1775923849305,-151.0,0.00013668,2]
[420295163,1775923849315,-151.0,0.00013668,2]
[420295164,1775923849340,-151.0,0.00013668,2]
[420295165,1775923849349,-151.0,0.00013668,2]
[420295166,1775923849358,-151.0,0.00013668,2]
[420295167,1775923849374,-151.0,0.00013668,2]
[420295168,1775923849383,-151.0,0.00013668,2]
[420295169,1775923849393,-151.0,0.00013668,2]
[420295170,1775923849403,-151.0,0.00013668,2]
[420295171,1775923849421,-151.0,0.00013668,2]
[420295172,1775923849431,-151.0,0.00013668,2]
[420295173,1775923849442,-151.0,0.00013668,2]
[420295174,1775923849451,-151.0,0.00013668,2]
[420295175,1775923849462,-151.0,0.00013668,2]
[420295176,1775923849473,-151.0,0.00013668,2]
[420295177,1775923849486,-151.0,0.00013668,2]
[420295178,1775923849495,-151.0,0.00013668,2]
[420295179,1775923849508,-151.0,0.00013668,2]
[420295180,1775923849519,-151.0,0.00013668,2]
[420295181,1775923849529,-151.0,0.00013668,2]
[420295182,1775923849548,-151.0,0.00013668,2]
[420295183,1775923849557,-151.0,0.00013668,2]
[420295184,1775923849566,-151.0,0.00013668,2]
[420295185,1775923849577,-151.0,0.00013668,2]
[420295186,1775923849595,-151.0,0.00013668,2]
[420295187,1775923849610,-151.0,0.00013668,2]
[420295188,1775923849619,-151.0,0.00013668,2]
[420295189,1775923849628,-151.0,0.00013668,2]
[420295190,1775923849647,-151.0,0.00013668,2]
[420295191,1775923849660,-151.0,0.00013668,2]
[420295192,1775923849669,-151.0,0.00013668,2]
[420295193,1775923849683,-151.0,0.00013668,2]
[420295194,1775923849699,-151.0,0.00013668,2]
[420295195,1775923849708,-151.0,0.00013668,2]
[420295196,1775923849717,-151.0,0.00013668,2]
[420295197,1775923849739,-151.0,0.00013668,2]
[420295198,1775923849748,-151.0,0.00013668,2]
[420295199,1775923849758,-151.0,0.00013668,2]
[420295200,1775923849771,-151.0,0.00013668,2]
[420295201,1775923849784,-151.0,0.00013668,2]
[420295202,1775923849795,-151.0,0.00013668,2]
[420295203,1775923849805,-151.0,0.00013668,2]
[420295204,1775923849821,-151.0,0.00013668,2]
[420295205,1775923849831,-151.0,0.00013668,2]
[420295206,1775923849846,-151.0,0.00013668,2]
[420295207,1775923849861,-151.0,0.00013668,2]
[420295208,1775923849870,-151.0,0.00013668,2]
[420295209,1775923849885,-151.0,0.00013668,2]